[Event "Titled Tuesday Blitz May 23 Early 2023"]
[White "Tarasova, Viktoriya"]
[Black "Necula, Iulian"]
[WhiteFideId "4175840"]
[BlackFideId "1232380"]
[WhiteElo "2182"]
[BlackElo "1790"]
[Result "1/2-1/2"]
[Round "02"]
[TimeControl "180+2"]
[Date "2023.05.23"]
[WhiteClock "0:00:18"]
[BlackClock "0:00:56"]

1. d4 {[%clk 0:02:58]}  d6 {[%clk 0:03:00]} 2. e4 {[%clk 0:02:56]}  Nf6 {[%clk 0:03:00]} 3. Nc3 {[%clk 0:02:55]}  Nbd7 {[%clk 0:03:00]} 4. f4 {[%clk 0:02:54]}  e5 {[%clk 0:03:00]} 5. Nf3 {[%clk 0:02:51]}  exd4 {[%clk 0:02:58]} 6. Qxd4 {[%clk 0:02:50]}  c6 {[%clk 0:02:58]} 7. Bc4 {[%clk 0:02:49]}  d5 {[%clk 0:02:57]} 8. exd5 {[%clk 0:02:38]}  Bc5 {[%clk 0:02:57]} 9. Qd3 {[%clk 0:02:38]}  O-O {[%clk 0:02:45]} 10. Bd2 {[%clk 0:01:59]}  Qe7+ {[%clk 0:02:41]} 11. Qe2 {[%clk 0:01:50]}  Qxe2+ {[%clk 0:02:32]} 12. Bxe2 {[%clk 0:01:25]}  cxd5 {[%clk 0:02:32]} 13. O-O-O {[%clk 0:01:23]}  Ne4 {[%clk 0:02:25]} 14. Nxe4 {[%clk 0:01:20]}  dxe4 {[%clk 0:02:26]} 15. Ng5 {[%clk 0:01:19]}  Nf6 {[%clk 0:02:23]} 16. b4 {[%clk 0:00:58]}  Bb6 {[%clk 0:02:20]} 17. c4 {[%clk 0:00:58]}  h6 {[%clk 0:02:18]} 18. Nh3 {[%clk 0:00:58]}  e3 {[%clk 0:02:16]} 19. Bc3 {[%clk 0:00:57]}  Ne4 {[%clk 0:02:12]} 20. Be1 {[%clk 0:00:50]}  Bxh3 {[%clk 0:02:12]} 21. gxh3 {[%clk 0:00:50]}  Nf2 {[%clk 0:02:12]} 22. Bxf2 {[%clk 0:00:43]}  exf2 {[%clk 0:02:13]} 23. c5 {[%clk 0:00:43]}  Bc7 {[%clk 0:02:12]} 24. Rd4 {[%clk 0:00:41]}  Rad8 {[%clk 0:02:11]} 25. Rhd1 {[%clk 0:00:41]}  Rxd4 {[%clk 0:02:10]} 26. Rxd4 {[%clk 0:00:41]}  Re8 {[%clk 0:02:06]} 27. Kd2 {[%clk 0:00:35]}  Rd8 {[%clk 0:02:02]} 28. Rxd8+ {[%clk 0:00:33]}  Bxd8 {[%clk 0:02:03]} 29. Ke3 {[%clk 0:00:27]}  Bc7 {[%clk 0:02:03]} 30. Kxf2 {[%clk 0:00:15]}  Bxf4 {[%clk 0:02:03]} 31. Bf3 {[%clk 0:00:15]}  b6 {[%clk 0:01:51]} 32. Kg2 {[%clk 0:00:13]}  bxc5 {[%clk 0:01:50]} 33. bxc5 {[%clk 0:00:14]}  Kf8 {[%clk 0:01:48]} 34. c6 {[%clk 0:00:14]}  Ke8 {[%clk 0:01:48]} 35. Bd5 {[%clk 0:00:15]}  f6 {[%clk 0:01:47]} 36. Kf3 {[%clk 0:00:15]}  Bxh2 {[%clk 0:01:46]} 37. Ke4 {[%clk 0:00:15]}  Kd8 {[%clk 0:01:46]} 38. Kf5 {[%clk 0:00:15]}  Kc7 {[%clk 0:01:36]} 39. Kg6 {[%clk 0:00:15]}  Kd6 {[%clk 0:01:36]} 40. Bg2 {[%clk 0:00:14]}  Bf4 {[%clk 0:01:31]} 41. Kxg7 {[%clk 0:00:14]}  Bg5 {[%clk 0:01:31]} 42. Kg6 {[%clk 0:00:14]}  a5 {[%clk 0:01:29]} 43. Kf5 {[%clk 0:00:15]}  h5 {[%clk 0:01:24]} 44. Bf3 {[%clk 0:00:12]}  h4 {[%clk 0:01:24]} 45. Bg2 {[%clk 0:00:13]}  Kc7 {[%clk 0:01:20]} 46. Ke6 {[%clk 0:00:13]}  a4 {[%clk 0:01:04]} 47. Bf3 {[%clk 0:00:13]}  a3 {[%clk 0:01:03]} 48. Bg2 {[%clk 0:00:13]}  Bf4 {[%clk 0:00:57]} 49. Kxf6 {[%clk 0:00:13]}  Bg3 {[%clk 0:00:57]} 50. Ke6 {[%clk 0:00:13]}  Bf2 {[%clk 0:00:56]} 51. Kd5 {[%clk 0:00:14]}  Bg3 {[%clk 0:00:57]} 52. Kc4 {[%clk 0:00:14]}  Bd6 {[%clk 0:00:56]} 53. Kb3 {[%clk 0:00:15]}  Be7 {[%clk 0:00:56]} 54. Ka4 {[%clk 0:00:16]}  Bd6 {[%clk 0:00:56]} 55. Kb5 {[%clk 0:00:17]}  Be7 {[%clk 0:00:56]} 56. Ka4 {[%clk 0:00:17]}  Bd6 {[%clk 0:00:56]} 57. Kb5 {[%clk 0:00:18]}  Be7 {[%clk 0:00:56]} 58. Ka4 {[%clk 0:00:18]} 1/2-1/2


[Site "https://www.chess.com"]

[Event "Titled Tuesday Blitz May 23 Early 2023"]
[White "Aung Thant Zin"]
[Black "Kovalevsky, Stanislav"]
[WhiteFideId "13000063"]
[BlackFideId "13508598"]
[WhiteElo "2278"]
[BlackElo "2174"]
[Result "0-1"]
[Round "02"]
[TimeControl "180+2"]
[Date "2023.05.23"]
[WhiteClock "0:00:00"]
[BlackClock "0:00:31"]

1. e4 {[%clk 0:02:59]}  e6 {[%clk 0:03:00]} 2. d4 {[%clk 0:02:59]}  d5 {[%clk 0:03:00]} 3. Nc3 {[%clk 0:02:59]}  dxe4 {[%clk 0:03:01]} 4. Nxe4 {[%clk 0:02:59]}  Nf6 {[%clk 0:03:02]} 5. Bg5 {[%clk 0:02:59]}  Be7 {[%clk 0:03:01]} 6. Bxf6 {[%clk 0:02:58]}  gxf6 {[%clk 0:03:01]} 7. Nf3 {[%clk 0:02:58]}  a6 {[%clk 0:02:59]} 8. Bd3 {[%clk 0:02:56]}  b5 {[%clk 0:02:56]} 9. Qe2 {[%clk 0:02:55]}  Bb7 {[%clk 0:02:56]} 10. O-O-O {[%clk 0:02:55]}  Qd5 {[%clk 0:02:54]} 11. Kb1 {[%clk 0:02:52]}  Nd7 {[%clk 0:02:49]} 12. c4 {[%clk 0:02:35]}  bxc4 {[%clk 0:02:49]} 13. Bc2 {[%clk 0:02:28]}  Bb4 {[%clk 0:02:25]} 14. Nfd2 {[%clk 0:01:51]}  f5 {[%clk 0:02:13]} 15. Ng3 {[%clk 0:01:45]}  c3 {[%clk 0:01:58]} 16. Nf3 {[%clk 0:01:29]}  O-O-O {[%clk 0:01:50]} 17. Bb3 {[%clk 0:01:09]}  Qa5 {[%clk 0:01:47]} 18. bxc3 {[%clk 0:01:04]}  Bxc3 {[%clk 0:01:47]} 19. Rc1 {[%clk 0:01:04]}  Rhg8 {[%clk 0:01:37]} 20. Rc2 {[%clk 0:00:39]}  Rxg3 {[%clk 0:01:20]} 21. hxg3 {[%clk 0:00:37]}  Be4 {[%clk 0:01:20]} 22. Ng5 {[%clk 0:00:22]}  Bxc2+ {[%clk 0:01:09]} 23. Qxc2 {[%clk 0:00:22]}  Nf6 {[%clk 0:00:51]} 24. Nxf7 {[%clk 0:00:20]}  Rxd4 {[%clk 0:00:50]} 25. Rc1 {[%clk 0:00:19]}  Ne4 {[%clk 0:00:48]} 26. Bxe6+ {[%clk 0:00:15]}  Kb8 {[%clk 0:00:47]} 27. Rd1 {[%clk 0:00:02]}  Nd2+ {[%clk 0:00:31]} 28. Rxd2 {[%clk 0:00:00]}  Rxd2 {[%clk 0:00:31]} 0-1


[Site "https://www.chess.com"]

[Event "Titled Tuesday Blitz May 23 Early 2023"]
[White "Mazurkiewicz, Michal"]
[Black "Singgih, Diajeng Theresa"]
[WhiteFideId "1124943"]
[BlackFideId "7104391"]
[WhiteElo "2054"]
[BlackElo "1891"]
[Result "1/2-1/2"]
[Round "02"]
[TimeControl "180+2"]
[Date "2023.05.23"]
[WhiteClock "0:00:54"]
[BlackClock "0:00:50"]

1. e4 {[%clk 0:02:59]}  e5 {[%clk 0:02:58]} 2. Nf3 {[%clk 0:02:59]}  Nc6 {[%clk 0:02:56]} 3. Bb5 {[%clk 0:03:00]}  a6 {[%clk 0:02:55]} 4. Bxc6 {[%clk 0:03:00]}  dxc6 {[%clk 0:02:55]} 5. O-O {[%clk 0:03:01]}  Bg4 {[%clk 0:02:43]} 6. h3 {[%clk 0:03:02]}  Bxf3 {[%clk 0:02:41]} 7. Qxf3 {[%clk 0:03:02]}  Qd7 {[%clk 0:02:41]} 8. d3 {[%clk 0:02:50]}  O-O-O {[%clk 0:02:40]} 9. Nd2 {[%clk 0:02:50]}  Bd6 {[%clk 0:02:31]} 10. a4 {[%clk 0:02:48]}  g6 {[%clk 0:02:31]} 11. Nc4 {[%clk 0:02:47]}  f5 {[%clk 0:02:30]} 12. Bg5 {[%clk 0:02:45]}  Rf8 {[%clk 0:02:28]} 13. Qe3 {[%clk 0:02:42]}  Kb8 {[%clk 0:02:24]} 14. exf5 {[%clk 0:02:27]}  Qxf5 {[%clk 0:02:07]} 15. Rae1 {[%clk 0:02:14]}  Re8 {[%clk 0:01:44]} 16. f4 {[%clk 0:02:10]}  e4 {[%clk 0:01:39]} 17. Nxd6 {[%clk 0:02:05]}  cxd6 {[%clk 0:01:38]} 18. dxe4 {[%clk 0:02:06]}  Qd7 {[%clk 0:01:36]} 19. Qd4 {[%clk 0:02:01]}  Ne7 {[%clk 0:01:32]} 20. Rd1 {[%clk 0:01:58]}  d5 {[%clk 0:01:30]} 21. Qc5 {[%clk 0:01:51]}  h6 {[%clk 0:01:17]} 22. Bf6 {[%clk 0:01:50]}  Rhf8 {[%clk 0:01:17]} 23. Bxe7 {[%clk 0:01:37]}  Qxe7 {[%clk 0:01:13]} 24. Qxe7 {[%clk 0:01:37]}  Rxe7 {[%clk 0:01:13]} 25. exd5 {[%clk 0:01:37]}  cxd5 {[%clk 0:01:13]} 26. Rxd5 {[%clk 0:01:38]}  Re2 {[%clk 0:01:12]} 27. Rc5 {[%clk 0:01:34]}  Rd8 {[%clk 0:01:02]} 28. Rf2 {[%clk 0:01:34]}  Rd1+ {[%clk 0:00:59]} 29. Rf1 {[%clk 0:00:55]}  Rdd2 {[%clk 0:00:58]} 30. Rc1 {[%clk 0:00:54]}  Rxg2+ {[%clk 0:00:58]} 31. Kf1 {[%clk 0:00:54]}  Rdf2+ {[%clk 0:00:57]} 32. Ke1 {[%clk 0:00:54]}  Re2+ {[%clk 0:00:53]} 33. Kf1 {[%clk 0:00:54]}  Rgf2+ {[%clk 0:00:53]} 34. Kg1 {[%clk 0:00:54]}  Rg2+ {[%clk 0:00:52]} 35. Kf1 {[%clk 0:00:54]}  Rgf2+ {[%clk 0:00:50]} 36. Kg1 {[%clk 0:00:54]}  Rg2+ {[%clk 0:00:50]} 37. Kf1 {[%clk 0:00:54]} 1/2-1/2


[Site "https://www.chess.com"]

[Event "Titled Tuesday Blitz May 23 Early 2023"]
[White "Golubev, Mikhail"]
[Black "Castillo Pena, Patricia Evarista"]
[WhiteFideId "14100983"]
[BlackFideId "6412106"]
[WhiteElo "2374"]
[BlackElo "1919"]
[Result "1-0"]
[Round "02"]
[TimeControl "180+2"]
[Date "2023.05.23"]
[WhiteClock "0:01:39"]
[BlackClock "0:01:19"]

1. e4 {[%clk 0:03:00]}  c5 {[%clk 0:02:59]} 2. Ne2 {[%clk 0:03:01]}  d5 {[%clk 0:02:58]} 3. exd5 {[%clk 0:02:58]}  Qxd5 {[%clk 0:02:59]} 4. Nbc3 {[%clk 0:02:59]}  Qd8 {[%clk 0:02:59]} 5. d4 {[%clk 0:02:56]}  cxd4 {[%clk 0:02:59]} 6. Nxd4 {[%clk 0:02:56]}  e5 {[%clk 0:02:50]} 7. Bb5+ {[%clk 0:02:53]}  Bd7 {[%clk 0:02:50]} 8. Nf5 {[%clk 0:02:35]}  Nf6 {[%clk 0:02:18]} 9. O-O {[%clk 0:02:24]}  a6 {[%clk 0:02:17]} 10. Bxd7+ {[%clk 0:02:13]}  Qxd7 {[%clk 0:02:16]} 11. Qf3 {[%clk 0:02:04]}  Nc6 {[%clk 0:02:01]} 12. Bg5 {[%clk 0:01:47]}  Nd4 {[%clk 0:01:45]} 13. Nxd4 {[%clk 0:01:45]}  exd4 {[%clk 0:01:43]} 14. Rfe1+ {[%clk 0:01:42]}  Be7 {[%clk 0:01:42]} 15. Bxf6 {[%clk 0:01:42]}  gxf6 {[%clk 0:01:19]} 16. Nd5 {[%clk 0:01:39]} 1-0


[Site "https://www.chess.com"]

[Event "Titled Tuesday Blitz May 23 Early 2023"]
[White "Mazarini41"]
[Black "Semenova, Alina"]
[BlackFideId "24113875"]
[WhiteElo "2409"]
[BlackElo "1833"]
[Result "1-0"]
[Round "02"]
[TimeControl "180+2"]
[Date "2023.05.23"]
[WhiteClock "0:00:55"]
[BlackClock "0:00:00"]

1. d4 {[%clk 0:02:56]}  d5 {[%clk 0:02:59]} 2. Nf3 {[%clk 0:02:55]}  Nf6 {[%clk 0:02:59]} 3. c4 {[%clk 0:02:55]}  e6 {[%clk 0:02:59]} 4. g3 {[%clk 0:02:55]}  Be7 {[%clk 0:02:59]} 5. Bg2 {[%clk 0:02:56]}  O-O {[%clk 0:02:59]} 6. O-O {[%clk 0:02:56]}  dxc4 {[%clk 0:03:00]} 7. Qc2 {[%clk 0:02:56]}  a6 {[%clk 0:02:55]} 8. a4 {[%clk 0:02:56]}  Nc6 {[%clk 0:02:53]} 9. Qxc4 {[%clk 0:02:54]}  Qd5 {[%clk 0:02:48]} 10. Nbd2 {[%clk 0:02:53]}  Na5 {[%clk 0:02:41]} 11. Qc2 {[%clk 0:02:48]}  c5 {[%clk 0:02:30]} 12. e4 {[%clk 0:02:47]}  Qc6 {[%clk 0:02:06]} 13. Ne5 {[%clk 0:02:32]}  Qc7 {[%clk 0:02:05]} 14. b4 {[%clk 0:02:28]}  Nc6 {[%clk 0:01:59]} 15. Nxc6 {[%clk 0:02:27]}  Qxc6 {[%clk 0:01:51]} 16. bxc5 {[%clk 0:02:23]}  b6 {[%clk 0:01:46]} 17. Nb3 {[%clk 0:02:09]}  bxc5 {[%clk 0:01:44]} 18. dxc5 {[%clk 0:02:09]}  Bb7 {[%clk 0:01:42]} 19. Na5 {[%clk 0:02:07]}  Qc7 {[%clk 0:01:40]} 20. Nxb7 {[%clk 0:02:06]}  Qxb7 {[%clk 0:01:41]} 21. Bg5 {[%clk 0:01:52]}  Rac8 {[%clk 0:01:35]} 22. Bxf6 {[%clk 0:01:35]}  gxf6 {[%clk 0:01:36]} 23. e5 {[%clk 0:01:35]}  Qc7 {[%clk 0:01:35]} 24. exf6 {[%clk 0:01:34]}  Bxf6 {[%clk 0:01:34]} 25. Rac1 {[%clk 0:01:33]}  Bg5 {[%clk 0:01:25]} 26. f4 {[%clk 0:01:31]}  Bf6 {[%clk 0:01:24]} 27. c6 {[%clk 0:01:30]}  Bd4+ {[%clk 0:01:22]} 28. Kh1 {[%clk 0:01:30]}  Qb6 {[%clk 0:01:22]} 29. f5 {[%clk 0:01:29]}  exf5 {[%clk 0:00:58]} 30. Qxf5 {[%clk 0:01:25]}  f6 {[%clk 0:00:48]} 31. Be4 {[%clk 0:01:11]}  Rc7 {[%clk 0:00:46]} 32. a5 {[%clk 0:01:05]}  Qb4 {[%clk 0:00:24]} 33. Qd5+ {[%clk 0:00:56]}  Kh8 {[%clk 0:00:22]} 34. Rc4 {[%clk 0:00:57]}  Qb3 {[%clk 0:00:00]} 35. Qxd4 {[%clk 0:00:55]} 1-0


[Site "https://www.chess.com"]

[Event "Titled Tuesday Blitz May 23 Early 2023"]
[White "Jakubowska, Anna"]
[Black "Sanchez, Robert"]
[WhiteFideId "1121952"]
[BlackFideId "2034360"]
[WhiteElo "2001"]
[BlackElo "1840"]
[Result "1-0"]
[Round "02"]
[TimeControl "180+2"]
[Date "2023.05.23"]
[WhiteClock "0:00:32"]
[BlackClock "0:00:46"]

1. e4 {[%clk 0:03:00]}  d5 {[%clk 0:02:58]} 2. exd5 {[%clk 0:02:59]}  Qxd5 {[%clk 0:02:58]} 3. Nc3 {[%clk 0:02:59]}  Qe6+ {[%clk 0:02:58]} 4. Nge2 {[%clk 0:02:57]}  Nf6 {[%clk 0:02:58]} 5. d4 {[%clk 0:02:56]}  g6 {[%clk 0:02:58]} 6. d5 {[%clk 0:02:51]}  Qd7 {[%clk 0:02:57]} 7. Bf4 {[%clk 0:02:41]}  Bg7 {[%clk 0:02:55]} 8. Qd2 {[%clk 0:02:41]}  O-O {[%clk 0:02:53]} 9. O-O-O {[%clk 0:02:41]}  a6 {[%clk 0:02:50]} 10. Ng3 {[%clk 0:02:19]}  b5 {[%clk 0:02:49]} 11. Nce4 {[%clk 0:02:18]}  Nxe4 {[%clk 0:02:48]} 12. Nxe4 {[%clk 0:02:17]}  Qf5 {[%clk 0:02:34]} 13. f3 {[%clk 0:02:11]}  Rd8 {[%clk 0:02:23]} 14. g4 {[%clk 0:02:05]}  Qd7 {[%clk 0:02:23]} 15. Nc5 {[%clk 0:02:01]}  Qe8 {[%clk 0:02:22]} 16. Bxc7 {[%clk 0:02:01]}  Nd7 {[%clk 0:02:21]} 17. Bxd8 {[%clk 0:01:57]}  Qxd8 {[%clk 0:02:22]} 18. Nxd7 {[%clk 0:01:56]}  Qxd7 {[%clk 0:02:22]} 19. Kb1 {[%clk 0:01:51]}  a5 {[%clk 0:02:22]} 20. c4 {[%clk 0:01:51]}  a4 {[%clk 0:02:12]} 21. c5 {[%clk 0:01:49]}  a3 {[%clk 0:02:13]} 22. b3 {[%clk 0:01:44]}  Qc7 {[%clk 0:02:10]} 23. Qe3 {[%clk 0:01:41]}  Bd7 {[%clk 0:01:55]} 24. c6 {[%clk 0:01:36]}  Rc8 {[%clk 0:01:53]} 25. Bxb5 {[%clk 0:01:34]}  Be8 {[%clk 0:01:48]} 26. f4 {[%clk 0:01:14]}  Qa5 {[%clk 0:01:31]} 27. Bc4 {[%clk 0:01:09]}  h6 {[%clk 0:01:24]} 28. Rd3 {[%clk 0:01:05]}  Qc7 {[%clk 0:01:13]} 29. Re1 {[%clk 0:01:03]}  Qd6 {[%clk 0:01:14]} 30. Qxe7 {[%clk 0:00:47]}  Qxf4 {[%clk 0:01:12]} 31. d6 {[%clk 0:00:47]}  Bxc6 {[%clk 0:00:47]} 32. d7 {[%clk 0:00:34]}  Bxd7 {[%clk 0:00:47]} 33. Qxf7+ {[%clk 0:00:32]}  Qxf7 {[%clk 0:00:46]} 1-0


[Site "https://www.chess.com"]

[Event "Titled Tuesday Blitz May 23 Early 2023"]
[White "Dubov, Daniil"]
[Black "Karthik Rajaa"]
[WhiteFideId "24126055"]
[BlackFideId "25035215"]
[WhiteElo "2793"]
[BlackElo "2215"]
[Result "1-0"]
[Round "03"]
[TimeControl "180+2"]
[Date "2023.05.23"]
[WhiteClock "0:00:31"]
[BlackClock "0:00:00"]

1. e4 {[%clk 0:03:00]}  Nf6 {[%clk 0:02:56]} 2. e5 {[%clk 0:03:00]}  Nd5 {[%clk 0:02:56]} 3. Nc3 {[%clk 0:02:59]}  Nxc3 {[%clk 0:02:54]} 4. bxc3 {[%clk 0:03:00]}  d5 {[%clk 0:02:55]} 5. d4 {[%clk 0:03:00]}  Bf5 {[%clk 0:02:53]} 6. Rb1 {[%clk 0:02:59]}  Qc8 {[%clk 0:02:52]} 7. Bd3 {[%clk 0:02:59]}  Bxd3 {[%clk 0:02:50]} 8. cxd3 {[%clk 0:02:59]}  e6 {[%clk 0:02:47]} 9. Qg4 {[%clk 0:02:56]}  Nd7 {[%clk 0:02:44]} 10. Nf3 {[%clk 0:02:54]}  b6 {[%clk 0:02:35]} 11. O-O {[%clk 0:02:54]}  h6 {[%clk 0:02:30]} 12. c4 {[%clk 0:02:46]}  Qb7 {[%clk 0:02:24]} 13. h4 {[%clk 0:02:44]}  Qc6 {[%clk 0:02:16]} 14. Be3 {[%clk 0:02:29]}  dxc4 {[%clk 0:02:09]} 15. dxc4 {[%clk 0:02:28]}  O-O-O {[%clk 0:01:54]} 16. d5 {[%clk 0:02:23]}  exd5 {[%clk 0:01:54]} 17. Nd4 {[%clk 0:02:23]}  Qg6 {[%clk 0:01:55]} 18. Qh3 {[%clk 0:02:12]}  Kb7 {[%clk 0:01:37]} 19. e6 {[%clk 0:02:06]}  Nc5 {[%clk 0:01:31]} 20. h5 {[%clk 0:01:19]}  Qf6 {[%clk 0:01:25]} 21. Rfc1 {[%clk 0:00:59]}  Nxe6 {[%clk 0:01:11]} 22. Nc6 {[%clk 0:00:53]}  d4 {[%clk 0:01:02]} 23. Nxd8+ {[%clk 0:00:52]}  Qxd8 {[%clk 0:01:01]} 24. Qf3+ {[%clk 0:00:52]}  Kb8 {[%clk 0:00:58]} 25. Bd2 {[%clk 0:00:52]}  Qd7 {[%clk 0:00:48]} 26. a4 {[%clk 0:00:50]}  Bc5 {[%clk 0:00:26]} 27. a5 {[%clk 0:00:48]}  Nd8 {[%clk 0:00:24]} 28. axb6 {[%clk 0:00:43]}  axb6 {[%clk 0:00:25]} 29. Ra1 {[%clk 0:00:41]}  Qc6 {[%clk 0:00:25]} 30. Qb3 {[%clk 0:00:35]}  Ne6 {[%clk 0:00:21]} 31. Qa2 {[%clk 0:00:36]}  Qb7 {[%clk 0:00:21]} 32. Re1 {[%clk 0:00:34]}  Rd8 {[%clk 0:00:21]} 33. Re5 {[%clk 0:00:33]}  d3 {[%clk 0:00:21]} 34. Rd5 {[%clk 0:00:34]}  Rxd5 {[%clk 0:00:20]} 35. cxd5 {[%clk 0:00:35]}  Nd4 {[%clk 0:00:19]} 36. Qc4 {[%clk 0:00:35]}  Ne2+ {[%clk 0:00:14]} 37. Kf1 {[%clk 0:00:34]}  Nd4 {[%clk 0:00:06]} 38. Re1 {[%clk 0:00:35]}  Qc8 {[%clk 0:00:06]} 39. Qxd3 {[%clk 0:00:34]}  Qd7 {[%clk 0:00:07]} 40. Bc3 {[%clk 0:00:31]}  Qxd5 {[%clk 0:00:06]} 41. Rd1 {[%clk 0:00:30]}  Qxh5 {[%clk 0:00:05]} 42. Bxd4 {[%clk 0:00:30]}  Qh1+ {[%clk 0:00:04]} 43. Ke2 {[%clk 0:00:31]}  Qh5+ {[%clk 0:00:00]} 44. Qf3 {[%clk 0:00:31]} 1-0


[Site "https://www.chess.com"]

[Event "Titled Tuesday Blitz May 23 Early 2023"]
[White "Samunenkov, Ihor"]
[Black "Grischuk, Alexander"]
[WhiteFideId "14187086"]
[BlackFideId "4126025"]
[WhiteElo "2457"]
[BlackElo "2721"]
[Result "0-1"]
[Round "03"]
[TimeControl "180+2"]
[Date "2023.05.23"]
[WhiteClock "0:00:00"]
[BlackClock "0:00:09"]

1. d4 {[%clk 0:03:00]}  g6 {[%clk 0:02:58]} 2. Nf3 {[%clk 0:02:55]}  Bg7 {[%clk 0:02:58]} 3. g3 {[%clk 0:02:56]}  c5 {[%clk 0:02:57]} 4. dxc5 {[%clk 0:02:39]}  Na6 {[%clk 0:02:45]} 5. Bg2 {[%clk 0:02:35]}  Nxc5 {[%clk 0:02:45]} 6. O-O {[%clk 0:02:35]}  b6 {[%clk 0:02:40]} 7. Nd4 {[%clk 0:01:59]}  Bb7 {[%clk 0:02:39]} 8. Bxb7 {[%clk 0:01:59]}  Nxb7 {[%clk 0:02:40]} 9. e4 {[%clk 0:01:59]}  h5 {[%clk 0:02:32]} 10. h3 {[%clk 0:01:53]}  Rc8 {[%clk 0:02:29]} 11. Nc3 {[%clk 0:01:50]}  Nc5 {[%clk 0:02:12]} 12. Re1 {[%clk 0:01:47]}  d6 {[%clk 0:01:47]} 13. Nd5 {[%clk 0:01:27]}  e6 {[%clk 0:01:45]} 14. Nb4 {[%clk 0:01:16]}  a5 {[%clk 0:01:17]} 15. Nbc6 {[%clk 0:00:56]}  Qd7 {[%clk 0:01:17]} 16. b4 {[%clk 0:00:52]}  axb4 {[%clk 0:01:16]} 17. Nxb4 {[%clk 0:00:52]}  Nf6 {[%clk 0:01:09]} 18. Qf3 {[%clk 0:00:42]}  e5 {[%clk 0:00:54]} 19. Nb3 {[%clk 0:00:29]}  Qxh3 {[%clk 0:00:55]} 20. Bg5 {[%clk 0:00:27]}  Nh7 {[%clk 0:00:52]} 21. Be3 {[%clk 0:00:25]}  h4 {[%clk 0:00:37]} 22. Rad1 {[%clk 0:00:20]}  hxg3 {[%clk 0:00:36]} 23. Qxg3 {[%clk 0:00:12]}  Qxg3+ {[%clk 0:00:26]} 24. fxg3 {[%clk 0:00:13]}  Nxe4 {[%clk 0:00:26]} 25. Bxb6 {[%clk 0:00:14]}  Nhg5 {[%clk 0:00:20]} 26. Kg2 {[%clk 0:00:11]}  Rc4 {[%clk 0:00:20]} 27. a3 {[%clk 0:00:11]}  O-O {[%clk 0:00:17]} 28. Rd3 {[%clk 0:00:10]}  Rfc8 {[%clk 0:00:16]} 29. Red1 {[%clk 0:00:05]}  f5 {[%clk 0:00:15]} 30. Na5 {[%clk 0:00:05]}  Rxc2+ {[%clk 0:00:12]} 31. Nxc2 {[%clk 0:00:05]}  Rxc2+ {[%clk 0:00:13]} 32. Kg1 {[%clk 0:00:04]}  f4 {[%clk 0:00:08]} 33. gxf4 {[%clk 0:00:02]}  exf4 {[%clk 0:00:09]} 34. Nb7 {[%clk 0:00:02]}  f3 {[%clk 0:00:08]} 35. Nxd6 {[%clk 0:00:02]}  Rg2+ {[%clk 0:00:08]} 36. Kf1 {[%clk 0:00:00]}  Ng3+ {[%clk 0:00:09]} 0-1


[Site "https://www.chess.com"]